Cogmind - Beta 9.2 @@@ ROGUE MODE // 2019.11.15 @ 04:59:43 Player: Demise Result: Destroyed by as-58805 with Assembled Heavy Rifle Performance ------------- Evolutions (0) 0 Regions Visited (4) 800 Robots Destroyed (29) 145 Value Destroyed (450) 450 Prototype IDs (22) 440 Alien Tech Used (0) 0 Bonus (300) 300 TOTAL SCORE: 2135 Bonus ------- Aligned with FarCom 300 Cogmind --------- Core Integrity 0/250 Matter 300/300 Energy 100/100 System Corruption 0% Temperature Cool (0) Movement Rolling (100) Ox2 Location -9/Mines Parts ------- > --- POWER (1) -------- (None) > --- PROPULSION (2) --- Wheel Wheel > --- UTILITY (2) ------ High-capacity Storage Unit Seismic Analyzer > --- WEAPON (2) ------- AWS/Gauss > --- INVENTORY (12) --- High-capacity Storage Unit High-capacity Matter Pod (200) Sensor Array Improved Terrain Scanner Small Laser Ripper Peak State ------------ > --- POWER ------------ (None) > --- PROPULSION ------- Wheel Wheel > --- UTILITY ---------- Improved Terrain Scanner Seismic Analyzer > --- WEAPON ----------- AWS/Gauss > --- INVENTORY -------- Medium Storage Unit Large Matter Pod Sensor Array Ripper [Rating: 21] Favorites ----------- Power Light Ion Engine Engine Light Ion Engine Propulsion Wheel Leg Aluminum Leg Wheel Wheel Utility Seismic Analyzer Device Improved Terrain Scanner Storage High-capacity Storage Unit Processor Seismic Analyzer Weapon AWS/Gauss Energy Gun EM Pulse Gun Energy Cannon Beam Cannon Ballistic Gun AWS/Gauss Special Weapon Mining Laser Build | -11 -10 -10 -10 -9 ------- Run | Scr Mat Min Exi Min Slots Evolved . | . . . . . Power . | . . . . . Propulsion . | . . . . . Utility . | . . . . . Weapon . | . . . . . Parts Attached 23 | 7 9 4 2 1 Power 1 | . 1 . . . Engine 1 | . 1 . . . Core . | . . . . . Reactor . | . . . . . Propulsion 7 | 2 4 . . 1 Treads . | . . . . . Leg 2 | . 2 . . . Wheel 5 | 2 2 . . 1 Hover . | . . . . . Flight . | . . . . . Utility 9 | 3 4 1 1 . Device 3 | 1 1 1 . . Storage 4 | 1 2 . 1 . Processor 2 | 1 1 . . . Hackware . | . . . . . Protection . | . . . . . Artifact . | . . . . . Weapon 6 | 2 . 3 1 . Energy Gun 2 | 1 . 1 . . Energy Cannon 1 | . . 1 . . Ballistic Gun 2 | 1 . . 1 . Ballistic Cannon . | . . . . . Launcher . | . . . . . Special Weapon 1 | . . 1 . . Impact Weapon . | . . . . . Slashing Weapon . | . . . . . Piercing Weapon . | . . . . . Special Melee Weapon . | . . . . . Unidentified Prototypes . | . . . . . Parts Lost 5 | . 4 . . 1 Power 1 | . 1 . . . Propulsion 2 | . 1 . . 1 Utility . | . . . . . Weapon 2 | . 2 . . . Highest Loss Streak 3 | . 3 . . 1 Average Slot Usage (%) 75 | . 86 72 76 70 Engine 1 | . 7 . . . Leg 1 | . 4 . . . Wheel 26 | . 22 28 28 27 Device 3 | . 4 4 9 . Storage 10 | . 9 9 4 14 Processor 14 | . 14 14 14 14 Energy Gun 4 | . 9 4 5 . Energy Cannon 2 | . . 4 5 . Ballistic Gun 9 | . 13 . 8 14 Special Weapon 1 | . . 6 . . Naked Turns . | . . . . . Heaviest Build 42 | 7 9 5 42 42 Greatest Support 20 | 3 20 20 20 20 Greatest Overweight (x) 4 | 2 1 . 2 4 Average Overweight (x) . | 1 . . . 2 Largest Inventory Capacity 12 | 6 4 4 12 12 Average Capacity 6 | 5 4 4 6 12 Most Carried 6 | 6 4 4 5 6 Average Carried 4 | 4 3 3 4 5 Final Capacity 12 | 4 4 4 12 12 Final Carried 6 | 4 4 4 5 6 Class Distribution -------------------- 100% | Mutant Dominant Class ---------------- Mutant | -10/Materials Mutant | -10/Mines Mutant | -10/Exiles Mutant | -9/Mines Resources | -11 -10 -10 -10 -9 ----------- Run | Scr Mat Min Exi Min Matter Collected 681 | 308 248 25 90 10 Remotely . | . . . . . Salvage Created 757 | 219 292 . . 246 Parts 44 | 24 12 . . 8 Haulers Intercepted 2 | . 2 . . . Recyclers Shooed . | . . . . . Parts Field Recycled . | . . . . . Retrieved Matter . | . . . . . Parts Self-Destructed . | . . . . . Prevented . | . . . . . Kills | -11 -10 -10 -10 -9 ------- Run | Scr Mat Min Exi Min Combat Hostiles Destroyed 17 | . 7 . . 10 Guns 12 | . 5 . . 7 AOE 5 | . 2 . . 3 Classes Destroyed 7 | 3 3 . . 1 Worker 4 | 2 . . . 2 Tunneler 5 | 5 . . . . Hauler 2 | . 2 . . . Recycler 1 | 1 . . . . Swarmer 7 | . 3 . . 4 Grunt 7 | . 4 . . 3 Assembled 3 | . . . . 3 Best Kill Streak 6 | 6 6 . . 5 Combat Bots Only 5 | . 5 . . 4 Max Kills in Single Turn 4 | 2 1 . . 4 Gunslinging . | . . . . . Exploded 3 | . 1 . . 3 Melee . | . . . . . Uniques/NPCs Destroyed . | . . . . . Combat | -11 -10 -10 -10 -9 -------- Run | Scr Mat Min Exi Min Damage Taken 706 | . 431 100 . 175 Core 250 | . 129 64 . 57 Absorbed by Shields . | . . . . . Core Remaining (%) 100 | 100 . . . . Volleys Fired 43 | 15 23 5 . . Largest 2 | 2 2 1 . . Hottest 100 | 60 60 100 . . Shots Fired 102 | 30 43 5 . 24 Gun 97 | 30 43 . . 24 Cannon . | . . . . . Launcher . | . . . . . Special 5 | . . 5 . . Kinetic 62 | 15 23 . . 24 Thermal 5 | . . 5 . . Explosive . | . . . . . Electromagnetic 35 | 15 20 . . . Robot Hit Streak 7 | 7 6 . . 4 Robot Miss Streak 6 | 4 6 . . 2 Penetration Max . | . . . . . Secondary Targets . | . . . . . Autonomous 24 | . . . . 24 Shots Hit Robots 55 | 13 24 . . 18 Core Hits 37 | 10 13 . . 14 Critical Hits 3 | . . . . 3 Critical Kills 1 | . . . . 1 Critical Parts Destroyed 2 | . . . . 2 Melee Attacks . | . . . . . Impact . | . . . . . Slashing . | . . . . . Piercing . | . . . . . Sneak Attacks . | . . . . . Combat Hostiles . | . . . . . Follow-up Attacks . | . . . . . Damage Inflicted 1672 | 235 412 . . 1025 Guns 1104 | 159 249 . . 696 Cannons . | . . . . . Explosions 566 | 76 161 . . 329 Melee . | . . . . . Ramming 2 | . 2 . . . Kinetic 811 | 29 86 . . 696 Thermal 566 | 76 161 . . 329 Explosive . | . . . . . Electromagnetic 293 | 130 163 . . . Impact . | . . . . . Slashing . | . . . . . Piercing . | . . . . . Highest Corruption . | . . . . . Average Corruption . | . . . . . Corruption Purged . | . . . . . Overload Shots . | . . . . . Overflow Damage 13 | . . . . 13 Projectiles . | . . . . . Explosions 13 | . . . . 13 Melee . | . . . . . Knockbacks . | . . . . . Impact . | . . . . . Kinetic . | . . . . . Secondary . | . . . . . Self-Inflicted Damage 78 | . 78 . . . Shots 2 | . 2 . . . Rammed 1 | . 1 . . . Targets Rammed 1 | . 1 . . . Kicked . | . . . . . Crushed . | . . . . . Highest Temperature 84 | 20 84 . . . Average Temperature 27 | 8 36 . . . Received Heat Transfer 213 | . 168 . . 45 Siege Activations . | . . . . . Robots Corrupted . | . . . . . Combat Hostiles . | . . . . . Parts Fried . | . . . . . Impact Corruptions . | . . . . . Robots Melted . | . . . . . Combat Hostiles . | . . . . . Parts Melted 1 | . . . . 1 Heat Transferred 600 | . 100 . . 500 Parts Sabotaged . | . . . . . Parts Stolen . | . . . . . Parts Stripped . | . . . . . Power Chain Reactions 3 | 1 2 . . . Missiles Intercepted . | . . . . . Alert | -11 -10 -10 -10 -9 ------- Run | Scr Mat Min Exi Min Peak Influence 277 | 40 277 103 . 235 Average Influence 100 | 20 192 103 . 61 Maximum Alert Level 1 | . 1 . . 1 Low Security (%) 80 | 100 31 100 . 91 Level 1 19 | . 68 . . 8 Level 2 . | . . . . . Level 3 . | . . . . . Level 4 . | . . . . . Level 5 . | . . . . . High Security . | . . . . . Max Security . | . . . . . Squads Dispatched 2 | . 2 . . . Investigation 2 | . 2 . . . Extermination . | . . . . . Reinforcement . | . . . . . Assault . | . . . . . Garrison . | . . . . . Intercept . | . . . . . Construction Impeded . | . . . . . Haulers Reinforced . | . . . . . Stealth | -11 -10 -10 -10 -9 --------- Run | Scr Mat Min Exi Min Distress Signals 1 | . 1 . . . Communications Jammed . | . . . . . Distress Signals . | . . . . . Times Spotted 40 | . 13 1 . 26 Peak Tracking Total 19 | . 5 2 . 19 Tactical Retreats 3 | . 2 1 . . Traps | -11 -10 -10 -10 -9 ------- Run | Scr Mat Min Exi Min Traps Triggered . | . . . . . Indirectly . | . . . . . Trap Hack Attempts . | . . . . . Triggered . | . . . . . Disarmed . | . . . . . Reprogrammed . | . . . . . Reused . | . . . . . Traps Extracted . | . . . . . Installed . | . . . . . Triggered . | . . . . . Machines | -11 -10 -10 -10 -9 ---------- Run | Scr Mat Min Exi Min Machines Disabled 8 | . 3 . . 5 Max in Single Turn 5 | . 1 . . 5 Machines Sabotaged . | . . . . . Garrisons Compromised . | . . . . . Overloaded Fab Kills . | . . . . . Fab Network Shutdowns . | . . . . . Hacking | -11 -10 -10 -10 -9 --------- Run | Scr Mat Min Exi Min Machines Accessed 3 | . 2 . 1 . Terminals 2 | . 2 . . . Fabricators . | . . . . . Repair Stations . | . . . . . Recycling Units . | . . . . . Scanalyzers . | . . . . . Garrison Access . | . . . . . Total Hacks 8 | . 7 . 1 . Successful 6 | . 5 . 1 . Failed 2 | . 2 . . . Catastrophic . | . . . . . Database Lockouts . | . . . . . Manual 6 | . 5 . 1 . Terminals 7 | . 7 . . . Fabricators . | . . . . . Repair Stations . | . . . . . Recycling Units . | . . . . . Scanalyzers . | . . . . . Garrison Access . | . . . . . Terminal Hacks 4 | . 3 . 1 . Record 1 | . 1 . . . Robot Analysis 1 | . 1 . . . Branch Access Points 1 | . 1 . . . EX-Prototype ID Bank 1 | . . . 1 . Fabricator Hacks . | . . . . . Repair Station Hacks . | . . . . . Recycling Unit Hacks . | . . . . . Scanalyzer . | . . . . . Garrison Access Hacks . | . . . . . Unauthorized Hacks 6 | . 6 . . . Terminals 2 | . 2 . . . Botnet 2 | . 2 . . . Fabricators . | . . . . . Repair Stations . | . . . . . Recycling Units . | . . . . . Scanalyzers . | . . . . . Garrison Access . | . . . . . Data Cores Recovered . | . . . . . Used . | . . . . . Hacking Detections 2 | . 2 . . . Full Trace Events 2 | . 2 . . . Feedback Events . | . . . . . Feedback Blocked . | . . . . . Robot Schematics Acquired . | . . . . . Robots Built . | . . . . . Matter . | . . . . . Time . | . . . . . Total Robot Build Rating . | . . . . . Part Schematics Acquired . | . . . . . Parts Built . | . . . . . Matter . | . . . . . Time . | . . . . . Total Part Build Rating . | . . . . . Parts Repaired . | . . . . . Time . | . . . . . Parts Recycled . | . . . . . Recycled Matter . | . . . . . Retrieved Matter . | . . . . . Retrieved Components . | . . . . . Parts Scanalyzed . | . . . . . Part Schematics Acquired . | . . . . . Parts Damaged . | . . . . . Bothacking | -11 -10 -10 -10 -9 ------------ Run | Scr Mat Min Exi Min Used RIF Installer . | . . . . . Robots Hacked . | . . . . . Non-combat . | . . . . . Combat . | . . . . . Robot Hacks Applied . | . . . . . Relay Couplers Released . | . . . . . Robots Rewired . | . . . . . Allies Hacked . | . . . . . Hacks Repelled . | . . . . . Allies | -11 -10 -10 -10 -9 -------- Run | Scr Mat Min Exi Min Total Allies . | . . . . . Largest Group . | . . . . . Highest-Rated Group . | . . . . . Highest-Rated Ally . | . . . . . Total Orders . | . . . . . Ally Attacks . | . . . . . Total Damage . | . . . . . Kills . | . . . . . Allies Corrupted . | . . . . . Allies Melted . | . . . . . Intel | -11 -10 -10 -10 -9 ------- Run | Scr Mat Min Exi Min Robot Analysis Total 1 | . 1 . . . Derelict Logs Recovered 2 | . . 1 . 1 Drone Launches . | . . . . . Drone Recoveries . | . . . . . Exploration | -11 -10 -10 -10 -9 ------------- Run | Scr Mat Min Exi Min Turns Passed 1371 | 137 283 319 222 410 Spaces Moved 1109 | 69 211 343 252 234 Core 75 | 69 6 . . . Treads . | . . . . . Legs 32 | . 32 . . . Wheels 1002 | . 173 343 252 234 Hover . | . . . . . Flight . | . . . . . Fastest Speed 50 | 50 80 80 80 100 Average Speed 88 | 110 86 80 85 100 Slowest Speed 150 | 150 120 80 100 120 Overloaded Moves . | . . . . . Propulsion Burnouts . | . . . . . Robots Hopped . | . . . . . Cave-ins Triggered 1 | . . 1 . . Exploration Rate (%) 48 | 3 47 71 68 51 Regions Visited 4 Branch Regions 3 Pre-discovered Areas . | . . . . . Known Exits Taken 1 | . 1 . . . Unknown Exits Taken 3 | 1 . 1 1 . Scrap Searched 1 | . . 1 . . Spaces Dug 5 | . . 5 . . Terrain Destroyed 57 | 5 8 5 . 39 Melee . | . . . . . Projectile 21 | . . 5 . 16 AOE 36 | 5 8 . . 23 Actions | -11 -10 -10 -10 -9 --------- Run | Scr Mat Min Exi Min Total 1418 | 106 272 371 261 408 Wait 209 | . 21 15 1 172 Move 1105 | 68 210 342 251 234 Hop . | . . . . . Pick Up 21 | 11 3 3 3 1 Fast Attach 11 | 4 4 1 1 1 Attach 4 | 2 1 1 . . Detach . | . . . . . Swap 8 | 1 4 2 1 . Drop 16 | 5 5 2 4 . Fire 43 | 15 23 5 . . Melee . | . . . . . Ram . | . . . . . Kick 1 | . 1 . . . Crush . | . . . . . Escape Stasis . | . . . . . Rewire . | . . . . . Trap . | . . . . . Miscellaneous . | . . . . . Route ------- -11/Scrapyard -10/Materials -10/Mines (discovered 2 exits: [*Mat] / *Exi) -10/Exiles -9/Mines (discovered 1 exit: [*Mat]) History --------- Turn | Location | Event 35 | -11/Scrapyard | Discovered new exit (range 12) 138 | -11/Scrapyard | Entered Materials 172 | -10/Materials | Identified exit to Mines 315 | -10/Materials | Build established: Mutant 352 | -10/Materials | Lost 3 parts (1p1n1w) 414 | -10/Materials | Core integrity fell below 50% 421 | -10/Materials | Entered Mines 517 | -10/Mines | Crushed by falling debris 673 | -10/Mines | Discovered new exit (range 15) 685 | -10/Mines | A weapon hastily lodged in a ceiling crevice suddenly fell to the ground 710 | -10/Mines | Learned location of 1 exit from Materials 736 | -10/Mines | Deemed a non-threat by the Exiles lab entrance 736 | -10/Mines | Discovered new exit (range 5) 740 | -10/Mines | Entered Exiles 760 | -10/Exiles | Met 8R-AWN 774 | -10/Exiles | Met EX-HEX 796 | -10/Exiles | Met EX-BIN 805 | -10/Exiles | Aligned with FarCom system 805 | -10/Exiles | Given EX-Vault access code 824 | -10/Exiles | Opened EX-Vault 829 | -10/Exiles | Found AWS/Gauss 845 | -10/Exiles | Warned to stay clear of 0b10 Research branches 859 | -10/Exiles | Exiles lab attacked by MAIN.C 954 | -10/Exiles | Discovered new exit (range 10) 962 | -10/Exiles | Left Exiles lab with AWS/Gauss 962 | -10/Exiles | Entered Mines 1339 | -9/Mines | Discovered new exit (range 12) 1360 | -9/Mines | Learned location of 1 exit from Proximity Caves 1362 | -9/Mines | Assembled infested the area 1371 | -9/Mines | Core integrity fell below 20% 1372 | -9/Mines | Destroyed by as-58805 with Assembled Heavy Rifle Last Messages --------------- 01329_ K-01 Serf destroyed. 01329_ Flight Unit melted. 01329_ S-10 Pest destroyed. 01331_ S-10 Pest suffers critical hit. 01331_ S-10 Pest destroyed. 01336_ R-06 Scavenger collects Lgt. Assault Rifle. 01339_ EXIT=FOUND 01344_ K-01 Serf collects debris. 01360_ Acquired derelict log, extracted data. Data stored: Proximity Caves exits (x1). 01362_ ALERT: Infestation in the mines, dispatching Demolisher response squad. 01367_ U-05 Engineer destroyed. 01368_ Slug penetrates Wall. 01369_ Slug penetrates as-48460. 01369_ as-72792 destroyed. 01371_ Slug penetrates as-55099. 01371_ as-55099 suffers critical hit. 01371_ Destroyed Asb. Hover Unit. 01371_ as-91979 destroyed. 01372_ as-55099 destroyed. Map ----- +----------------------------------------------------+ | | | | | | | | | | | | | | | ???????????????????????????????????????? | | ???????????????????????????????????????? | | ???????????????????????????????????????? | | ???????????????????????????????????????? | | ?????????????????????????????????#####?? | | ????????????????????????????????## ##? | | ?????????????????????????????#### #? | | ????????????????????????????## ## | | ????????????????????????##### # | | ????????????????????????? """ | | ??????????????????????????? """ | | ????????????????????????????# """ | | ????????????????????????????# | | ????????????????????????????## | | ?????????????????????????????## | | ??????????????################# | | ?????????# #### | | ?????????# z | | ?????????######@############## | | ??????????????#% #???????????## # | | ?????????????? a #???????????# ## | | ?????????????# a #???????????## ##### | | ?????????????#=| #????????????#C ## ?# | | ?????????????# !a ??????????### ###?# | | ?????????????#;a #???????### "% "##?# | | ?????????????#aaaa##???????#" %%""#?# | | ?????????????#;a #??# "## | | ?????????????#aa a#??# "## | | ????????????? #??# ## | | ????????????? aa ??# < | | ????????????? ??# "## | | ?????????????a% a #??# "## | | ????????????? #??# "## | | ????????????? a ???# "## | | ?????????????????????# "## | | ?????????????????????###"""# ## "##### | | ???????????????????????### ##?#####???## | | ????????????????????????? ?????????????# | | ??????????????????????????????????????## | | ?????????????????????????????????????## | | ?????????????????????????????????????# | | ??????????????????????????????????# | | ??????????????????????????????????# ### | +----------------------------------------------------+ Best States ------------- Heat Dissipation 25 Energy Generation 10 Energy Capacity 125 Matter Stores 450 Matter Capacity 450 Sight Range 16 Terrain Scan Range 16 Terrain Scan Density 60 Evasion (%) 50 Item Schematics ----------------- None Robot Schematics ------------------ None Fabricated ------------ Nothing Alien Tech Used ----------------- None Achievements -------------- None Challenges ------------ None Game ------ Seed BottomlessElectronBoosters Manual? 0 Play Time 00:16:39 Cumulative 123.3 hours Start 2019.11.15 @ 04:45:18 End 2019.11.15 @ 04:59:43 Sessions 1 Manual Loads 0 Difficulty Rogue Special Mode None Game No. 167 Rogue 156 Adventurer 11 Explorer 0 Win Type - Total 0 Types 0/0/0/0/0/0/0 Lore% 43 Gallery% 54 Achievement% 38 Wizard Run 0 Options --------- ASCII 0 Keyboard 1 Movement Numpad Keybinds 0 Fullscreen 1 Font 12/Terminus Map View 83x54 Tactical HUD 1 Map Filters NONE Filters NONE Steam 1 RUN: 28c39217-9633-494c-914c-a32258123cf1